[Event "Titled Tuesday Blitz August 08 Early 2023"]
[White "Kuchava, Ana"]
[Black "Goswami, Vedant"]
[WhiteFideId "13605348"]
[BlackFideId "5003725"]
[WhiteElo "2173"]
[BlackElo "2293"]
[Result "0-1"]
[Round "11"]
[TimeControl "180+1"]
[Date "2023.08.08"]
[WhiteClock "0:00:02"]
[BlackClock "0:00:44"]
[Board "145"]

1. d4 {[%clk 0:03:00]}  a6 {[%clk 0:02:57]} 2. c4 {[%clk 0:02:56]}  c6 {[%clk 0:02:56]} 3. Nc3 {[%clk 0:02:54]}  d5 {[%clk 0:02:55]} 4. e3 {[%clk 0:02:46]}  g6 {[%clk 0:02:55]} 5. Bd3 {[%clk 0:02:37]}  Bg7 {[%clk 0:02:56]} 6. Nf3 {[%clk 0:02:35]}  Nf6 {[%clk 0:02:57]} 7. O-O {[%clk 0:02:34]}  O-O {[%clk 0:02:57]} 8. h3 {[%clk 0:02:30]}  c5 {[%clk 0:02:58]} 9. Qe2 {[%clk 0:02:04]}  Nc6 {[%clk 0:02:59]} 10. Rd1 {[%clk 0:01:45]}  dxc4 {[%clk 0:03:00]} 11. Bxc4 {[%clk 0:01:45]}  cxd4 {[%clk 0:02:45]} 12. exd4 {[%clk 0:01:40]}  e6 {[%clk 0:02:44]} 13. Bg5 {[%clk 0:01:37]}  Qa5 {[%clk 0:02:41]} 14. Qe3 {[%clk 0:01:25]}  Nd5 {[%clk 0:02:39]} 15. Nxd5 {[%clk 0:01:17]}  exd5 {[%clk 0:02:38]} 16. Bb3 {[%clk 0:01:17]}  Be6 {[%clk 0:02:33]} 17. Bh6 {[%clk 0:01:16]}  Rfe8 {[%clk 0:02:30]} 18. Qf4 {[%clk 0:01:04]}  Qd8 {[%clk 0:02:27]} 19. Bxg7 {[%clk 0:00:53]}  Kxg7 {[%clk 0:02:27]} 20. Rac1 {[%clk 0:00:54]}  Qf6 {[%clk 0:02:26]} 21. Qc7 {[%clk 0:00:49]}  Re7 {[%clk 0:02:24]} 22. Qb6 {[%clk 0:00:47]}  Bxh3 {[%clk 0:02:19]} 23. Bxd5 {[%clk 0:00:30]}  Bg4 {[%clk 0:01:59]} 24. Bxc6 {[%clk 0:00:28]}  bxc6 {[%clk 0:01:58]} 25. Qxc6 {[%clk 0:00:29]}  Qxc6 {[%clk 0:01:35]} 26. Rxc6 {[%clk 0:00:30]}  Bxf3 {[%clk 0:01:35]} 27. gxf3 {[%clk 0:00:29]}  Re2 {[%clk 0:01:35]} 28. Rb6 {[%clk 0:00:27]}  Rd8 {[%clk 0:01:32]} 29. d5 {[%clk 0:00:26]}  a5 {[%clk 0:01:29]} 30. Kf1 {[%clk 0:00:25]}  Rc2 {[%clk 0:01:28]} 31. Rb5 {[%clk 0:00:23]}  a4 {[%clk 0:01:25]} 32. a3 {[%clk 0:00:22]}  h5 {[%clk 0:01:22]} 33. Rd4 {[%clk 0:00:22]}  Re8 {[%clk 0:01:16]} 34. Re4 {[%clk 0:00:15]}  Rec8 {[%clk 0:01:08]} 35. Rxa4 {[%clk 0:00:14]}  Rd2 {[%clk 0:01:08]} 36. d6 {[%clk 0:00:05]}  Rcc2 {[%clk 0:01:06]} 37. Rb6 {[%clk 0:00:04]}  Rxf2+ {[%clk 0:01:06]} 38. Ke1 {[%clk 0:00:04]}  Rfe2+ {[%clk 0:01:06]} 39. Kf1 {[%clk 0:00:04]}  Red2 {[%clk 0:01:04]} 40. Ke1 {[%clk 0:00:04]}  Rh2 {[%clk 0:01:04]} 41. Kd1 {[%clk 0:00:02]}  Rcf2 {[%clk 0:00:59]} 42. Re4 {[%clk 0:00:02]}  Rd2+ {[%clk 0:00:58]} 43. Ke1 {[%clk 0:00:02]}  h4 {[%clk 0:00:47]} 44. a4 {[%clk 0:00:02]}  h3 {[%clk 0:00:47]} 45. a5 {[%clk 0:00:02]}  Rhg2 {[%clk 0:00:45]} 46. Kf1 {[%clk 0:00:02]}  h2 {[%clk 0:00:44]} 47. Rh4 {[%clk 0:00:02]}  Rg1# {[%clk 0:00:44]} 0-1


[Site "https://www.chess.com"]

[Event "Titled Tuesday Blitz August 08 Early 2023"]
[White "Tharushi, T H D Niklesha"]
[Black "Player, Edmund C"]
[WhiteFideId "9918264"]
[BlackFideId "406520"]
[WhiteElo "2075"]
[BlackElo "2291"]
[Result "1/2-1/2"]
[Round "11"]
[TimeControl "180+1"]
[Date "2023.08.08"]
[WhiteClock "0:00:09"]
[BlackClock "0:00:04"]
[Board "146"]

1. d4 {[%clk 0:03:00]}  Nf6 {[%clk 0:02:40]} 2. c4 {[%clk 0:03:00]}  e6 {[%clk 0:02:38]} 3. g3 {[%clk 0:02:57]}  d5 {[%clk 0:02:38]} 4. Nf3 {[%clk 0:02:55]}  Bb4+ {[%clk 0:02:32]} 5. Bd2 {[%clk 0:02:53]}  a5 {[%clk 0:02:31]} 6. Bg2 {[%clk 0:02:49]}  O-O {[%clk 0:02:30]} 7. O-O {[%clk 0:02:44]}  Be7 {[%clk 0:02:26]} 8. Qc2 {[%clk 0:02:38]}  c6 {[%clk 0:02:25]} 9. a3 {[%clk 0:02:33]}  Nbd7 {[%clk 0:02:22]} 10. Bc3 {[%clk 0:02:30]}  Ne4 {[%clk 0:02:20]} 11. b3 {[%clk 0:02:23]}  f5 {[%clk 0:02:04]} 12. Nbd2 {[%clk 0:02:19]}  Bf6 {[%clk 0:01:39]} 13. e3 {[%clk 0:02:09]}  b5 {[%clk 0:01:30]} 14. cxb5 {[%clk 0:02:01]}  cxb5 {[%clk 0:01:29]} 15. Bb2 {[%clk 0:01:58]}  Bb7 {[%clk 0:01:16]} 16. Rfc1 {[%clk 0:01:52]}  Rc8 {[%clk 0:01:09]} 17. Qd3 {[%clk 0:01:51]}  Qb6 {[%clk 0:01:07]} 18. b4 {[%clk 0:01:41]}  a4 {[%clk 0:01:02]} 19. Ne1 {[%clk 0:01:37]}  Qa6 {[%clk 0:00:55]} 20. Bf1 {[%clk 0:01:29]}  Nxd2 {[%clk 0:00:51]} 21. Qxd2 {[%clk 0:01:29]}  Nb6 {[%clk 0:00:52]} 22. Nd3 {[%clk 0:01:18]}  Nc4 {[%clk 0:00:49]} 23. Qe2 {[%clk 0:01:17]}  Qb6 {[%clk 0:00:42]} 24. Nc5 {[%clk 0:01:16]}  Rce8 {[%clk 0:00:39]} 25. Nd7 {[%clk 0:01:14]}  Qd6 {[%clk 0:00:37]} 26. Nxf8 {[%clk 0:01:13]}  Rxf8 {[%clk 0:00:38]} 27. Bc3 {[%clk 0:01:08]}  g5 {[%clk 0:00:38]} 28. Qh5 {[%clk 0:01:07]}  Bc6 {[%clk 0:00:35]} 29. Bd3 {[%clk 0:01:06]}  Be8 {[%clk 0:00:35]} 30. Qe2 {[%clk 0:01:02]}  h5 {[%clk 0:00:33]} 31. f3 {[%clk 0:00:58]}  Rf7 {[%clk 0:00:29]} 32. Rf1 {[%clk 0:00:52]}  h4 {[%clk 0:00:28]} 33. f4 {[%clk 0:00:47]}  g4 {[%clk 0:00:27]} 34. Qf2 {[%clk 0:00:31]}  h3 {[%clk 0:00:25]} 35. Qe2 {[%clk 0:00:30]}  Rc7 {[%clk 0:00:25]} 36. Rfc1 {[%clk 0:00:28]}  Qd8 {[%clk 0:00:24]} 37. Ra2 {[%clk 0:00:26]}  Qc8 {[%clk 0:00:24]} 38. Raa1 {[%clk 0:00:23]}  Bc6 {[%clk 0:00:24]} 39. Rab1 {[%clk 0:00:19]}  Bb7 {[%clk 0:00:23]} 40. Ra1 {[%clk 0:00:19]}  Bc6 {[%clk 0:00:24]} 41. Kf2 {[%clk 0:00:19]}  Bb7 {[%clk 0:00:23]} 42. Kg1 {[%clk 0:00:19]}  Kf7 {[%clk 0:00:23]} 43. Kf2 {[%clk 0:00:19]}  Nd6 {[%clk 0:00:20]} 44. Bb2 {[%clk 0:00:16]}  Nc4 {[%clk 0:00:17]} 45. Bc3 {[%clk 0:00:16]}  Be7 {[%clk 0:00:17]} 46. Kg1 {[%clk 0:00:13]}  Bd6 {[%clk 0:00:13]} 47. Kf2 {[%clk 0:00:13]}  Ba8 {[%clk 0:00:12]} 48. Kg1 {[%clk 0:00:14]}  Rc6 {[%clk 0:00:11]} 49. Kf2 {[%clk 0:00:13]}  Nb6 {[%clk 0:00:12]} 50. Bb2 {[%clk 0:00:11]}  Nc4 {[%clk 0:00:11]} 51. Bc3 {[%clk 0:00:11]}  Qd7 {[%clk 0:00:10]} 52. Kg1 {[%clk 0:00:11]}  Qb7 {[%clk 0:00:10]} 53. Kf2 {[%clk 0:00:10]}  Bf8 {[%clk 0:00:09]} 54. Kg1 {[%clk 0:00:10]}  Qc7 {[%clk 0:00:09]} 55. Kf2 {[%clk 0:00:10]}  Nd6 {[%clk 0:00:07]} 56. Bb2 {[%clk 0:00:09]}  Nc4 {[%clk 0:00:06]} 57. Bc3 {[%clk 0:00:09]}  Qc8 {[%clk 0:00:05]} 58. Kg1 {[%clk 0:00:09]}  Bd6 {[%clk 0:00:04]} 59. Kf2 {[%clk 0:00:09]} 1/2-1/2


[Site "https://www.chess.com"]

[Event "Titled Tuesday Blitz August 08 Early 2023"]
[White "Vedder, Richard"]
[Black "Samaganova, Aleksandra"]
[WhiteFideId "1004166"]
[BlackFideId "13800221"]
[WhiteElo "2392"]
[BlackElo "2237"]
[Result "1/2-1/2"]
[Round "11"]
[TimeControl "180+1"]
[Date "2023.08.08"]
[WhiteClock "0:01:09"]
[BlackClock "0:00:07"]
[Board "147"]

1. d4 {[%clk 0:03:00]}  Nf6 {[%clk 0:02:59]} 2. c4 {[%clk 0:03:00]}  e6 {[%clk 0:02:58]} 3. Nc3 {[%clk 0:02:59]}  Bb4 {[%clk 0:02:57]} 4. f3 {[%clk 0:02:59]}  c5 {[%clk 0:02:55]} 5. a3 {[%clk 0:03:00]}  Bxc3+ {[%clk 0:02:55]} 6. bxc3 {[%clk 0:03:00]}  cxd4 {[%clk 0:02:56]} 7. cxd4 {[%clk 0:03:01]}  d5 {[%clk 0:02:56]} 8. e3 {[%clk 0:02:59]}  O-O {[%clk 0:02:54]} 9. Bd2 {[%clk 0:02:57]}  Nc6 {[%clk 0:02:53]} 10. cxd5 {[%clk 0:02:58]}  Nxd5 {[%clk 0:02:41]} 11. Bd3 {[%clk 0:02:57]}  g6 {[%clk 0:02:10]} 12. Ne2 {[%clk 0:02:57]}  Re8 {[%clk 0:01:59]} 13. O-O {[%clk 0:02:56]}  a6 {[%clk 0:01:34]} 14. e4 {[%clk 0:02:55]}  Nde7 {[%clk 0:01:30]} 15. Be3 {[%clk 0:02:54]}  b5 {[%clk 0:01:29]} 16. Qc2 {[%clk 0:02:51]}  Bb7 {[%clk 0:01:28]} 17. Rac1 {[%clk 0:02:51]}  Rc8 {[%clk 0:01:28]} 18. Qa2 {[%clk 0:02:48]}  Na5 {[%clk 0:01:16]} 19. Rxc8 {[%clk 0:02:45]}  Qxc8 {[%clk 0:01:13]} 20. Rc1 {[%clk 0:02:45]}  Qd7 {[%clk 0:01:13]} 21. Qd2 {[%clk 0:02:39]}  Nac6 {[%clk 0:00:59]} 22. Bb1 {[%clk 0:02:33]}  Qd6 {[%clk 0:00:56]} 23. Qb2 {[%clk 0:02:31]}  Na5 {[%clk 0:00:53]} 24. Bh6 {[%clk 0:02:30]}  f6 {[%clk 0:00:42]} 25. Ba2 {[%clk 0:02:26]}  Rc8 {[%clk 0:00:37]} 26. h4 {[%clk 0:02:13]}  Rxc1+ {[%clk 0:00:31]} 27. Qxc1 {[%clk 0:02:14]}  Qb6 {[%clk 0:00:22]} 28. h5 {[%clk 0:02:11]}  Kf7 {[%clk 0:00:20]} 29. hxg6+ {[%clk 0:02:10]}  Nxg6 {[%clk 0:00:14]} 30. Be3 {[%clk 0:02:10]}  Qd6 {[%clk 0:00:13]} 31. Qc3 {[%clk 0:02:01]}  Nc6 {[%clk 0:00:11]} 32. d5 {[%clk 0:01:59]}  exd5 {[%clk 0:00:11]} 33. Bxd5+ {[%clk 0:01:59]}  Kg7 {[%clk 0:00:11]} 34. Nd4 {[%clk 0:01:57]}  Nxd4 {[%clk 0:00:06]} 35. Bxd4 {[%clk 0:01:57]}  Bxd5 {[%clk 0:00:04]} 36. exd5 {[%clk 0:01:57]}  Ne5 {[%clk 0:00:05]} 37. Bxe5 {[%clk 0:01:55]}  Qxe5 {[%clk 0:00:04]} 38. Qd2 {[%clk 0:01:48]}  Qd6 {[%clk 0:00:03]} 39. Qd3 {[%clk 0:01:45]}  Kf7 {[%clk 0:00:02]} 40. Kf2 {[%clk 0:01:45]}  Kg7 {[%clk 0:00:02]} 41. g4 {[%clk 0:01:45]}  Qb6+ {[%clk 0:00:02]} 42. Kg3 {[%clk 0:01:45]}  Qd6+ {[%clk 0:00:03]} 43. f4 {[%clk 0:01:43]}  h6 {[%clk 0:00:03]} 44. Qf3 {[%clk 0:01:37]}  a5 {[%clk 0:00:03]} 45. Kh4 {[%clk 0:01:37]}  b4 {[%clk 0:00:03]} 46. axb4 {[%clk 0:01:37]}  Qxb4 {[%clk 0:00:03]} 47. Qe3 {[%clk 0:01:31]}  Qd6 {[%clk 0:00:03]} 48. Qa7+ {[%clk 0:01:30]}  Kg8 {[%clk 0:00:02]} 49. Qxa5 {[%clk 0:01:31]}  Qxf4 {[%clk 0:00:02]} 50. Qd8+ {[%clk 0:01:31]}  Kg7 {[%clk 0:00:02]} 51. Qe7+ {[%clk 0:01:31]}  Kg8 {[%clk 0:00:03]} 52. Qe8+ {[%clk 0:01:25]}  Kg7 {[%clk 0:00:03]} 53. Qe2 {[%clk 0:01:22]}  Qg5+ {[%clk 0:00:03]} 54. Kh3 {[%clk 0:01:22]}  Qxd5 {[%clk 0:00:03]} 55. Qe7+ {[%clk 0:01:22]}  Kg8 {[%clk 0:00:03]} 56. Qe8+ {[%clk 0:01:22]}  Kg7 {[%clk 0:00:03]} 57. Qe7+ {[%clk 0:01:23]}  Qf7 {[%clk 0:00:04]} 58. Qe4 {[%clk 0:01:22]}  Qb3+ {[%clk 0:00:04]} 59. Kh4 {[%clk 0:01:21]}  Qf7 {[%clk 0:00:05]} 60. Kh3 {[%clk 0:01:21]}  Qc7 {[%clk 0:00:05]} 61. Qf5 {[%clk 0:01:19]}  Qf7 {[%clk 0:00:05]} 62. Qf4 {[%clk 0:01:19]}  Qb3+ {[%clk 0:00:05]} 63. Kh4 {[%clk 0:01:19]}  Qf7 {[%clk 0:00:05]} 64. Kh3 {[%clk 0:01:18]}  Qb7 {[%clk 0:00:05]} 65. Kh2 {[%clk 0:01:14]}  Qb2+ {[%clk 0:00:04]} 66. Kh3 {[%clk 0:01:14]}  Qc3+ {[%clk 0:00:05]} 67. Kh4 {[%clk 0:01:09]}  Qe1+ {[%clk 0:00:04]} 68. Kh3 {[%clk 0:01:08]}  Qh1+ {[%clk 0:00:04]} 69. Kg3 {[%clk 0:01:08]}  Qg1+ {[%clk 0:00:05]} 70. Kh3 {[%clk 0:01:08]}  Qh1+ {[%clk 0:00:05]} 71. Kg3 {[%clk 0:01:09]}  Qe1+ {[%clk 0:00:05]} 72. Kh3 {[%clk 0:01:09]}  Qc3+ {[%clk 0:00:06]} 73. Kh4 {[%clk 0:01:08]}  Qe1+ {[%clk 0:00:07]} 74. Kh3 {[%clk 0:01:09]} 1/2-1/2


[Site "https://www.chess.com"]

[Event "Titled Tuesday Blitz August 08 Early 2023"]
[White "Davidson, Kevin"]
[Black "Schut, Han"]
[WhiteFideId "2056810"]
[BlackFideId "1005561"]
[WhiteElo "2358"]
[BlackElo "2231"]
[Result "1-0"]
[Round "11"]
[TimeControl "180+1"]
[Date "2023.08.08"]
[WhiteClock "0:01:01"]
[BlackClock "0:00:28"]
[Board "148"]

1. e4 {[%clk 0:03:00]}  c5 {[%clk 0:02:56]} 2. Nf3 {[%clk 0:03:00]}  d6 {[%clk 0:02:57]} 3. d4 {[%clk 0:03:00]}  cxd4 {[%clk 0:02:57]} 4. Nxd4 {[%clk 0:03:00]}  Nf6 {[%clk 0:02:58]} 5. Nc3 {[%clk 0:03:01]}  a6 {[%clk 0:02:58]} 6. h3 {[%clk 0:03:01]}  e6 {[%clk 0:02:57]} 7. g4 {[%clk 0:03:01]}  d5 {[%clk 0:02:57]} 8. exd5 {[%clk 0:03:01]}  Nxd5 {[%clk 0:02:58]} 9. Nde2 {[%clk 0:03:01]}  Bb4 {[%clk 0:02:57]} 10. Bg2 {[%clk 0:03:01]}  O-O {[%clk 0:02:54]} 11. O-O {[%clk 0:03:00]}  Bxc3 {[%clk 0:02:54]} 12. Nxc3 {[%clk 0:02:58]}  Nxc3 {[%clk 0:02:53]} 13. bxc3 {[%clk 0:02:58]}  Qc7 {[%clk 0:02:51]} 14. Qf3 {[%clk 0:02:48]}  Nc6 {[%clk 0:02:45]} 15. Ba3 {[%clk 0:02:14]}  Rd8 {[%clk 0:02:33]} 16. Rfd1 {[%clk 0:02:08]}  e5 {[%clk 0:02:06]} 17. Rxd8+ {[%clk 0:02:04]}  Qxd8 {[%clk 0:01:56]} 18. Rd1 {[%clk 0:02:02]}  Qb6 {[%clk 0:01:33]} 19. Qe3 {[%clk 0:01:30]}  Qxe3 {[%clk 0:01:16]} 20. fxe3 {[%clk 0:01:31]}  Be6 {[%clk 0:01:13]} 21. Rb1 {[%clk 0:01:27]}  Na5 {[%clk 0:00:58]} 22. Bb4 {[%clk 0:01:10]}  Nc4 {[%clk 0:00:49]} 23. Bxb7 {[%clk 0:01:03]}  Ra7 {[%clk 0:00:28]} 24. Bc5 {[%clk 0:01:01]} 1-0


[Site "https://www.chess.com"]

[Event "Titled Tuesday Blitz August 08 Early 2023"]
[White "Semenova, Alina"]
[Black "LuxLinster"]
[WhiteFideId "24113875"]
[WhiteElo "2096"]
[BlackElo "2265"]
[Result "1-0"]
[Round "11"]
[TimeControl "180+1"]
[Date "2023.08.08"]
[WhiteClock "0:01:34"]
[BlackClock "0:00:07"]
[Board "154"]

1. e4 {[%clk 0:03:00]}  e5 {[%clk 0:03:00]} 2. Nf3 {[%clk 0:02:59]}  Nc6 {[%clk 0:03:00]} 3. c3 {[%clk 0:02:59]}  d5 {[%clk 0:02:59]} 4. Qa4 {[%clk 0:02:58]}  f6 {[%clk 0:02:58]} 5. d3 {[%clk 0:02:57]}  Be6 {[%clk 0:02:56]} 6. Be2 {[%clk 0:02:56]}  Qd7 {[%clk 0:02:56]} 7. O-O {[%clk 0:02:56]}  g5 {[%clk 0:02:53]} 8. b4 {[%clk 0:02:55]}  g4 {[%clk 0:02:53]} 9. Nfd2 {[%clk 0:02:55]}  h5 {[%clk 0:02:44]} 10. exd5 {[%clk 0:02:53]}  Bxd5 {[%clk 0:02:44]} 11. c4 {[%clk 0:02:53]}  Nd4 {[%clk 0:02:02]} 12. Bd1 {[%clk 0:02:52]}  Be6 {[%clk 0:01:36]} 13. Qxd7+ {[%clk 0:02:47]}  Bxd7 {[%clk 0:01:36]} 14. Bb2 {[%clk 0:02:47]}  Bxb4 {[%clk 0:01:34]} 15. Ne4 {[%clk 0:02:47]}  f5 {[%clk 0:01:30]} 16. a3 {[%clk 0:02:34]}  fxe4 {[%clk 0:01:18]} 17. axb4 {[%clk 0:02:33]}  exd3 {[%clk 0:01:19]} 18. Re1 {[%clk 0:02:34]}  O-O-O {[%clk 0:00:57]} 19. Rxe5 {[%clk 0:02:12]}  Nc2 {[%clk 0:00:50]} 20. Rxa7 {[%clk 0:02:08]}  Kb8 {[%clk 0:00:46]} 21. Rea5 {[%clk 0:02:07]}  b6 {[%clk 0:00:45]} 22. Ra8+ {[%clk 0:02:06]}  Kb7 {[%clk 0:00:45]} 23. R5a7+ {[%clk 0:02:06]}  Kc6 {[%clk 0:00:45]} 24. Bxh8 {[%clk 0:02:05]}  Rxa8 {[%clk 0:00:37]} 25. Rxa8 {[%clk 0:02:06]}  Ne7 {[%clk 0:00:37]} 26. Nd2 {[%clk 0:02:02]}  Nxb4 {[%clk 0:00:34]} 27. Ba4+ {[%clk 0:01:57]}  Kd6 {[%clk 0:00:30]} 28. Bxd7 {[%clk 0:01:57]}  Kxd7 {[%clk 0:00:30]} 29. Bc3 {[%clk 0:01:55]}  Nec6 {[%clk 0:00:28]} 30. Rh8 {[%clk 0:01:49]}  Na2 {[%clk 0:00:22]} 31. Bb2 {[%clk 0:01:47]}  Na5 {[%clk 0:00:19]} 32. Rxh5 {[%clk 0:01:46]}  Kc6 {[%clk 0:00:20]} 33. f4 {[%clk 0:01:43]}  gxf3 {[%clk 0:00:19]} 34. gxf3 {[%clk 0:01:44]}  Kb7 {[%clk 0:00:12]} 35. f4 {[%clk 0:01:43]}  c6 {[%clk 0:00:13]} 36. f5 {[%clk 0:01:43]}  b5 {[%clk 0:00:13]} 37. cxb5 {[%clk 0:01:42]}  cxb5 {[%clk 0:00:14]} 38. f6 {[%clk 0:01:41]}  Nc4 {[%clk 0:00:14]} 39. f7 {[%clk 0:01:40]}  Nxd2 {[%clk 0:00:12]} 40. f8=Q {[%clk 0:01:39]}  Nc4 {[%clk 0:00:12]} 41. Rh7+ {[%clk 0:01:35]}  Kc6 {[%clk 0:00:12]} 42. Qf3+ {[%clk 0:01:34]}  Kc5 {[%clk 0:00:07]} 43. Qxd3 {[%clk 0:01:34]} 1-0


[Site "https://www.chess.com"]

[Event "Titled Tuesday Blitz August 08 Early 2023"]
[White "Mangialardo, Tiago Carvalho"]
[Black "McLaren, Brian"]
[WhiteFideId "2130718"]
[BlackFideId "2604612"]
[WhiteElo "2082"]
[BlackElo "2254"]
[Result "1-0"]
[Round "11"]
[TimeControl "180+1"]
[Date "2023.08.08"]
[WhiteClock "0:00:15"]
[BlackClock "0:01:00"]
[Board "155"]

1. e4 {[%clk 0:03:00]}  g6 {[%clk 0:02:58]} 2. d4 {[%clk 0:02:59]}  Bg7 {[%clk 0:02:57]} 3. f4 {[%clk 0:02:58]}  c6 {[%clk 0:02:56]} 4. Nf3 {[%clk 0:02:57]}  d5 {[%clk 0:02:55]} 5. e5 {[%clk 0:02:57]}  h5 {[%clk 0:02:52]} 6. Bd3 {[%clk 0:02:56]}  Nh6 {[%clk 0:02:52]} 7. Ng5 {[%clk 0:02:51]}  Bg4 {[%clk 0:02:44]} 8. Qd2 {[%clk 0:02:48]}  e6 {[%clk 0:02:43]} 9. Rg1 {[%clk 0:02:34]}  h4 {[%clk 0:02:38]} 10. h3 {[%clk 0:02:33]}  Bf5 {[%clk 0:02:37]} 11. Be2 {[%clk 0:02:22]}  Qb6 {[%clk 0:02:29]} 12. Nf3 {[%clk 0:02:11]}  c5 {[%clk 0:02:19]} 13. Kf2 {[%clk 0:02:05]}  Nc6 {[%clk 0:02:14]} 14. c3 {[%clk 0:01:56]}  cxd4 {[%clk 0:02:13]} 15. cxd4 {[%clk 0:01:53]}  Bxb1 {[%clk 0:02:10]} 16. Rxb1 {[%clk 0:01:53]}  Nf5 {[%clk 0:02:10]} 17. Rd1 {[%clk 0:01:47]}  Bf8 {[%clk 0:02:04]} 18. a3 {[%clk 0:01:42]}  Ncxd4 {[%clk 0:02:00]} 19. Nxd4 {[%clk 0:01:28]}  Nxd4 {[%clk 0:01:59]} 20. Kf1 {[%clk 0:01:09]}  Nxe2 {[%clk 0:01:48]} 21. Qxe2 {[%clk 0:01:07]}  Rc8 {[%clk 0:01:48]} 22. Be3 {[%clk 0:01:03]}  Qa5 {[%clk 0:01:44]} 23. b4 {[%clk 0:00:59]}  Qxa3 {[%clk 0:01:42]} 24. Qb5+ {[%clk 0:00:57]}  Kd8 {[%clk 0:01:35]} 25. Rd3 {[%clk 0:00:48]}  Qa2 {[%clk 0:01:26]} 26. Rbd1 {[%clk 0:00:33]}  Be7 {[%clk 0:01:11]} 27. Rxd5+ {[%clk 0:00:15]}  exd5 {[%clk 0:01:09]} 28. Rxd5+ {[%clk 0:00:15]}  Kc7 {[%clk 0:01:00]} 29. Rd7+ {[%clk 0:00:15]} 1-0


[Site "https://www.chess.com"]

[Event "Titled Tuesday Blitz August 08 Early 2023"]
[White "Miguelitro69"]
[Black "Nikulina, Alena"]
[BlackFideId "4172051"]
[WhiteElo "2243"]
[BlackElo "2065"]
[Result "0-1"]
[Round "11"]
[TimeControl "180+1"]
[Date "2023.08.08"]
[WhiteClock "0:00:09"]
[BlackClock "0:00:05"]
[Board "157"]

1. e4 {[%clk 0:02:58]}  c5 {[%clk 0:02:59]} 2. Nf3 {[%clk 0:02:59]}  e6 {[%clk 0:02:59]} 3. g3 {[%clk 0:02:58]}  Nf6 {[%clk 0:02:53]} 4. Nc3 {[%clk 0:02:57]}  Nc6 {[%clk 0:02:49]} 5. Bg2 {[%clk 0:02:57]}  d5 {[%clk 0:02:47]} 6. exd5 {[%clk 0:02:50]}  exd5 {[%clk 0:02:47]} 7. O-O {[%clk 0:02:47]}  Be7 {[%clk 0:02:43]} 8. d4 {[%clk 0:02:47]}  cxd4 {[%clk 0:02:34]} 9. Nxd4 {[%clk 0:02:43]}  O-O {[%clk 0:02:33]} 10. Bf4 {[%clk 0:02:31]}  Bg4 {[%clk 0:02:22]} 11. Qd2 {[%clk 0:02:24]}  Bb4 {[%clk 0:02:12]} 12. a3 {[%clk 0:02:15]}  Ba5 {[%clk 0:01:54]} 13. Bg5 {[%clk 0:02:13]}  h6 {[%clk 0:01:47]} 14. Be3 {[%clk 0:01:58]}  Ne5 {[%clk 0:01:40]} 15. b4 {[%clk 0:01:49]}  Bb6 {[%clk 0:01:25]} 16. Nb3 {[%clk 0:01:22]}  Nf3+ {[%clk 0:00:35]} 17. Bxf3 {[%clk 0:01:12]}  Bxf3 {[%clk 0:00:35]} 18. Bxb6 {[%clk 0:01:08]}  Qxb6 {[%clk 0:00:25]} 19. Nd4 {[%clk 0:01:07]}  Ne4 {[%clk 0:00:19]} 20. Qd3 {[%clk 0:01:02]}  Nxc3 {[%clk 0:00:19]} 21. Qxc3 {[%clk 0:01:00]}  Be4 {[%clk 0:00:19]} 22. Nb3 {[%clk 0:00:56]}  Rac8 {[%clk 0:00:18]} 23. Nc5 {[%clk 0:00:56]}  Bf5 {[%clk 0:00:15]} 24. Qe5 {[%clk 0:00:49]}  Bh3 {[%clk 0:00:10]} 25. Rfd1 {[%clk 0:00:46]}  d4 {[%clk 0:00:10]} 26. Rxd4 {[%clk 0:00:44]}  Qc6 {[%clk 0:00:10]} 27. Qd5 {[%clk 0:00:44]}  Qg6 {[%clk 0:00:07]} 28. Rd2 {[%clk 0:00:18]}  b6 {[%clk 0:00:07]} 29. Nd3 {[%clk 0:00:17]}  Rfd8 {[%clk 0:00:07]} 30. Qf3 {[%clk 0:00:16]}  Bg4 {[%clk 0:00:07]} 31. Qe3 {[%clk 0:00:16]}  Bf5 {[%clk 0:00:06]} 32. Ne5 {[%clk 0:00:16]}  Qe6 {[%clk 0:00:06]} 33. Rxd8+ {[%clk 0:00:15]}  Rxd8 {[%clk 0:00:06]} 34. c4 {[%clk 0:00:15]}  Re8 {[%clk 0:00:05]} 35. Re1 {[%clk 0:00:16]}  Bh3 {[%clk 0:00:05]} 36. f4 {[%clk 0:00:16]}  f6 {[%clk 0:00:04]} 37. g4 {[%clk 0:00:11]}  Bxg4 {[%clk 0:00:04]} 38. Nxg4 {[%clk 0:00:11]}  Qxg4+ {[%clk 0:00:04]} 39. Kf2 {[%clk 0:00:10]}  Rxe3 {[%clk 0:00:03]} 40. Rxe3 {[%clk 0:00:10]}  Qxf4+ {[%clk 0:00:03]} 41. Rf3 {[%clk 0:00:11]}  Qd2+ {[%clk 0:00:04]} 42. Kg3 {[%clk 0:00:11]}  Qb2 {[%clk 0:00:04]} 43. c5 {[%clk 0:00:11]}  Qd4 {[%clk 0:00:04]} 44. Rf4 {[%clk 0:00:11]}  Qe5 {[%clk 0:00:04]} 45. Kf3 {[%clk 0:00:11]}  bxc5 {[%clk 0:00:05]} 46. Re4 {[%clk 0:00:12]}  Qc3+ {[%clk 0:00:05]} 47. Kf4 {[%clk 0:00:12]}  Qxa3 {[%clk 0:00:05]} 48. b5 {[%clk 0:00:11]}  Qb3 {[%clk 0:00:03]} 49. Re7 {[%clk 0:00:12]}  Qxb5 {[%clk 0:00:03]} 50. Rb7 {[%clk 0:00:12]}  Qc4+ {[%clk 0:00:04]} 51. Kf5 {[%clk 0:00:11]}  Qd5+ {[%clk 0:00:04]} 52. Kf4 {[%clk 0:00:09]}  Qxb7 {[%clk 0:00:05]} 0-1


[Site "https://www.chess.com"]

[Event "Titled Tuesday Blitz August 08 Early 2023"]
[White "Clawitter, Craig"]
[Black "Wisniowski, Natalie"]
[WhiteFideId "2023105"]
[BlackFideId "30929261"]
[WhiteElo "2192"]
[BlackElo "2038"]
[Result "1-0"]
[Round "11"]
[TimeControl "180+1"]
[Date "2023.08.08"]
[WhiteClock "0:00:05"]
[BlackClock "0:00:02"]
[Board "161"]

1. e4 {[%clk 0:03:00]}  e6 {[%clk 0:02:59]} 2. d4 {[%clk 0:03:00]}  d5 {[%clk 0:02:59]} 3. e5 {[%clk 0:03:01]}  c5 {[%clk 0:02:57]} 4. c3 {[%clk 0:03:01]}  Nc6 {[%clk 0:02:54]} 5. Nf3 {[%clk 0:03:02]}  Qb6 {[%clk 0:02:50]} 6. a3 {[%clk 0:03:02]}  Nge7 {[%clk 0:02:46]} 7. dxc5 {[%clk 0:03:00]}  Qc7 {[%clk 0:02:32]} 8. Bf4 {[%clk 0:02:43]}  Ng6 {[%clk 0:02:28]} 9. Bg3 {[%clk 0:02:43]}  Bxc5 {[%clk 0:02:27]} 10. b4 {[%clk 0:02:19]}  Be7 {[%clk 0:02:23]} 11. Bd3 {[%clk 0:02:01]}  O-O {[%clk 0:01:56]} 12. O-O {[%clk 0:01:59]}  a6 {[%clk 0:01:42]} 13. Nbd2 {[%clk 0:01:37]}  b5 {[%clk 0:01:17]} 14. a4 {[%clk 0:01:22]}  bxa4 {[%clk 0:01:12]} 15. Rxa4 {[%clk 0:01:18]}  Bb7 {[%clk 0:01:11]} 16. Nb3 {[%clk 0:01:12]}  Rfd8 {[%clk 0:00:54]} 17. Nbd4 {[%clk 0:01:08]}  Qb6 {[%clk 0:00:44]} 18. h4 {[%clk 0:00:54]}  Rac8 {[%clk 0:00:39]} 19. h5 {[%clk 0:00:51]}  Nf8 {[%clk 0:00:39]} 20. h6 {[%clk 0:00:43]}  Ng6 {[%clk 0:00:17]} 21. hxg7 {[%clk 0:00:41]}  Kxg7 {[%clk 0:00:17]} 22. Qd2 {[%clk 0:00:39]}  Nxd4 {[%clk 0:00:15]} 23. Nxd4 {[%clk 0:00:29]}  Rc7 {[%clk 0:00:07]} 24. Kh2 {[%clk 0:00:14]}  Rdc8 {[%clk 0:00:07]} 25. Ra3 {[%clk 0:00:14]}  Qa7 {[%clk 0:00:05]} 26. f4 {[%clk 0:00:13]}  Qb6 {[%clk 0:00:05]} 27. f5 {[%clk 0:00:13]}  exf5 {[%clk 0:00:05]} 28. Nxf5+ {[%clk 0:00:13]}  Kg8 {[%clk 0:00:04]} 29. Nh6+ {[%clk 0:00:12]}  Kg7 {[%clk 0:00:03]} 30. Rxf7+ {[%clk 0:00:11]}  Kh8 {[%clk 0:00:03]} 31. Bxg6 {[%clk 0:00:09]}  hxg6 {[%clk 0:00:03]} 32. Qf4 {[%clk 0:00:08]}  Qe6 {[%clk 0:00:03]} 33. Ng4 {[%clk 0:00:05]}  Rf8 {[%clk 0:00:02]} 34. Qh6+ {[%clk 0:00:05]}  Kg8 {[%clk 0:00:02]} 35. Qh7# {[%clk 0:00:05]} 1-0


[Site "https://www.chess.com"]